bitfinex-derivatives/quotes_BNBF0:USTF0_20250413
["timestamp","ask_amount","ask_price","bid_price","bid_amount"]
[1744586729318,0.31256223,584.15,583.15,2.187]
[1744586731522,0.31256494,584.14,583.15,2.187]
[1744586731822,0.31256494,584.13,583.15,2.187]
[1744586732121,0.31256494,584.12,583.15,2.187]
[1744586732316,0.31256494,584.15,583.15,2.187]
[1744586732522,0.31256494,584.14,583.15,2.187]
[1744586732716,0.31256494,584.15,583.15,2.187]
[1744586732915,0.31256494,584.14,583.15,2.187]
[1744586733222,0.31256494,584.15,583.15,2.187]
[1744586733423,0.31256494,584.14,583.15,2.187]
[1744586733623,0.31256494,584.15,583.15,2.187]
[1744586735624,0.31256494,584.15,583.15,2.711]
[1744586736324,0.31255471,584.14,583.15,2.711]
[1744586736517,0.31255471,584.15,583.15,2.711]
[1744586736721,0.31255471,584.14,583.15,2.711]
[1744586736917,0.31255471,584.13,583.15,2.711]
[1744586737119,0.31255471,584.15,583.15,2.711]
[1744586737321,0.31255471,584.14,583.15,2.711]
[1744586737523,0.31255471,584.15,583.15,2.711]
[1744586737725,0.31255471,584.14,583.15,2.711]
[1744586737920,0.31256285,584.13,583.15,2.711]
[1744586738126,0.31256285,584.15,583.15,2.711]
[1744586738325,0.31256285,584.14,583.15,2.711]
[1744586738626,0.31256285,584.13,583.15,2.711]
[1744586738824,0.31256285,584.12,583.15,2.711]
[1744586739025,0.31256285,584.15,583.15,2.711]
[1744586739225,0.34237195,584.16,583.15,2.711]
[1744586739226,0.31256285,584.14,583.15,2.711]
[1744586739420,0.31256285,584.13,583.15,2.711]
[1744586739626,0.31256285,584.15,583.15,2.711]
[1744586739827,0.31256285,584.14,583.15,2.711]
[1744586740026,0.31256285,584.15,583.15,2.711]
[1744586741125,0.34237195,584.16,583.15,2.711]
[1744586741323,0.31255746,584.15,583.15,2.711]
[1744586742729,0.34237195,584.16,583.15,2.711]
[1744586742931,0.31255756,584.15,583.15,2.711]
[1744586745331,0.216,584.14,583.15,2.711]
[1744586745527,0.31255756,584.13,583.15,2.711]
[1744586749236,0.216,584.14,583.15,2.711]
[1744586749436,0.31255887,584.13,583.15,2.711]
[1744586751534,0.31255887,584.13,583.15,3.222]
[1744586753942,0.216,584.14,583.15,3.222]
[1744586754132,0.31255769,584.13,583.15,3.222]
[1744586761643,1.30011221,584.1,583.15,3.222]
[1744586761843,0.31255769,584.09,583.15,3.222]
[1744586763042,1.30011221,584.1,583.15,3.222]
[1744586763244,0.31255695,584.09,583.15,3.222]
[1744586763939,0.31255695,584.12,583.15,3.222]
[1744586764143,0.31255695,584.11,583.15,3.222]
[1744586764343,0.31255695,584.12,583.15,3.222]
[1744586765842,1.61266916,584.12,583.15,3.222]
[1744586766043,0.31255695,584.11,583.15,3.222]
[1744586766242,0.31255883,584.1,583.15,3.222]
[1744586766441,0.31255883,584.11,583.15,3.222]
[1744586766642,0.31255883,584.1,583.15,3.222]
[1744586766847,0.31255883,584.09,583.15,3.222]
[1744586767146,0.31255883,584.08,583.15,3.222]
[1744586767347,0.31255883,584.11,583.15,3.222]
[1744586767547,0.31255883,584.1,583.15,3.222]
[1744586767747,0.31255883,584.11,583.15,3.222]
[1744586769348,1.30011221,584.12,583.15,3.222]
[1744586769548,0.31255191,584.11,583.15,3.222]
[1744586770148,0.216,584.1,583.15,3.222]
[1744586770349,0.31255191,584.09,583.15,3.222]
[1744586770949,0.216,584.1,583.15,3.222]
[1744586771149,0.31255958,584.09,583.15,3.222]
[1744586772452,0.216,584.1,583.15,3.222]
[1744586772751,0.31255744,584.09,583.15,3.222]
[1744586774147,0.31252561,584.08,583.15,3.222]
[1744586774352,0.31252561,584.09,583.15,3.222]
[1744586774654,0.216,584.1,583.15,3.222]
[1744586774848,0.3125083,584.09,583.15,3.222]
[1744586775755,0.216,584.1,583.15,3.222]
[1744586775956,0.31251148,584.09,583.15,3.222]
[1744586781259,0.216,584.1,583.15,3.222]
[1744586781459,0.31252722,584.09,583.15,3.222]
[1744586782160,0.216,584.1,583.15,3.222]
[1744586782356,0.31252971,584.09,583.15,3.222]
[1744586783656,0.216,584.1,583.15,3.222]
[1744586783861,0.31255229,584.09,583.15,3.222]
[1744586785260,0.216,584.1,583.15,3.222]
[1744586785461,0.31254931,584.09,583.15,3.222]
[1744586789963,0.216,584.1,583.15,3.222]
[1744586790160,0.31255794,584.09,583.15,3.222]
[1744586792661,0.31255794,584.15,583.15,3.222]
[1744586794966,0.216,584.14,583.15,3.222]
[1744586795166,0.31255794,584.13,583.15,3.222]
[1744586797775,0.216,584.14,583.15,3.222]
[1744586798075,0.31255434,584.13,583.15,3.222]
[1744586802580,0.216,584.14,583.15,3.222]
[1744586802880,0.31255605,584.13,583.15,3.222]
[1744586803781,0.216,584.14,583.15,3.222]
[1744586803981,0.31255417,584.13,583.15,3.222]
[1744586804183,0.216,584.14,583.15,3.222]
[1744586804383,0.31255417,584.13,583.15,3.222]
[1744586805786,0.216,584.14,583.15,3.222]
[1744586806085,0.312549,584.13,583.15,3.222]
[1744586808988,0.216,584.14,583.15,3.222]
[1744586809188,0.31254434,584.13,583.15,3.222]
[1744586812191,0.216,584.14,583.15,3.222]
[1744586812391,0.31254244,584.13,583.15,3.222]
[1744586813786,0.216,584.14,583.15,3.222]
[1744586813986,0.31254536,584.13,583.15,3.222]
[1744586817295,0.216,584.14,583.15,3.222]
[1744586817490,0.31254153,584.13,583.15,3.222]
[1744586818793,0.216,584.14,583.15,3.222]
[1744586818993,0.31254094,584.13,583.15,3.222]
[1744586823092,0.31253212,584.12,583.15,3.222]
[1744586823394,0.31253212,584.11,583.15,3.222]
[1744586823589,0.31253212,584.15,583.15,3.222]
[1744586823793,0.31253212,584.14,583.15,3.222]
[1744586823993,0.31253212,584.15,583.15,3.222]
[1744586824189,0.31253212,584.14,583.15,3.222]
[1744586824495,0.34237195,584.16,583.15,3.222]
[1744586824697,0.31253253,584.15,583.15,3.222]
[1744586826008,0.34237195,584.16,583.15,3.222]
[1744586826199,0.31253576,584.15,583.15,3.222]
[1744586826704,0.216,584.14,583.15,3.222]
[1744586826903,0.31253576,584.13,583.15,3.222]
[1744586827501,0.216,584.14,583.15,3.222]
[1744586827706,0.31254263,584.13,583.15,3.222]
[1744586830607,0.216,584.14,583.15,3.222]
[1744586830806,0.31254375,584.13,583.15,3.222]
[1744586832208,0.216,584.14,583.15,3.222]
[1744586832408,0.3125423,584.13,583.15,3.222]
[1744586835211,0.216,584.14,583.15,3.222]
[1744586835411,0.31254154,584.13,583.15,3.222]
[1744586839909,0.31254245,584.12,583.15,3.222]
[1744586840114,0.31254245,584.11,583.15,3.222]
[1744586840315,0.31254245,584.1,583.15,3.222]
[1744586840514,0.31254245,584.09,583.15,3.222]
[1744586840710,0.31254245,584.13,583.15,3.222]
[1744586840914,0.31254245,584.12,583.15,3.222]
[1744586841218,0.31254245,584.11,583.15,3.222]
[1744586841515,0.31254245,584.13,583.15,3.222]
[1744586841717,0.31254245,584.12,583.15,3.222]
[1744586841916,0.31254245,584.11,583.15,3.222]
[1744586842117,0.31254245,584.1,583.15,3.222]
[1744586842324,0.31254245,584.14,583.15,3.222]
[1744586842612,0.31254245,584.13,583.15,3.222]
[1744586842821,0.31254245,584.14,583.15,3.222]
[1744586843113,0.31254245,584.13,583.15,3.222]
[1744586843315,0.31254245,584.12,583.15,3.222]
[1744586843611,0.31254245,584.11,583.15,3.222]
[1744586843810,0.31254245,584.1,583.15,3.222]
[1744586844014,0.31254245,584.09,583.15,3.222]
[1744586844213,0.31254245,584.15,583.15,3.222]
[1744586844413,0.31254245,584.08,583.15,3.222]
[1744586844714,0.31254245,584.07,583.15,3.222]
[1744586844913,0.31254245,584.14,583.15,3.222]
[1744586845721,0.216,584.13,583.15,3.222]
[1744586846021,0.31254245,584.12,583.15,3.222]
[1744586852121,0.216,584.13,583.15,3.222]
[1744586852326,0.3125288,584.12,583.15,3.222]
[1744586854822,0.216,584.13,583.15,3.222]
[1744586857730,0.34237195,584.16,583.15,3.222]
[1744586858030,0.31251018,584.15,583.15,3.222]
[1744586858226,0.34237195,584.16,583.15,3.222]
[1744586858431,0.31251018,584.15,583.15,3.222]
[1744586860234,0.216,584.14,583.15,3.222]
[1744586864838,0.31251044,584.13,583.15,3.222]
[1744586865938,0.216,584.14,583.15,3.222]
[1744586866131,0.31251026,584.13,583.15,3.222]
[1744586867532,0.31251551,584.12,583.15,3.222]
[1744586867733,0.31251551,584.11,583.15,3.222]
[1744586867933,0.31251551,584.13,583.15,3.222]
[1744586868133,0.31251551,584.12,583.15,3.222]
[1744586868438,0.216,584.14,583.15,3.222]
[1744586868631,0.31251214,584.13,583.15,3.222]
[1744586869133,0.216,584.14,583.15,3.222]
[1744586869434,0.31251154,584.13,583.15,3.222]
[1744586870732,0.216,584.14,583.15,3.222]
[1744586870937,0.31250339,584.13,583.15,3.222]
[1744586873739,0.216,584.14,583.15,3.222]
[1744586873940,0.31248834,584.13,583.15,3.222]
[1744586874944,0.216,584.14,583.15,3.222]
[1744586875139,0.31248707,584.13,583.15,3.222]
[1744586877038,0.216,584.14,583.15,3.222]
[1744586877235,0.31248697,584.13,583.15,3.222]
[1744586877637,0.34237195,584.16,583.15,3.222]
[1744586877943,0.31248694,584.15,583.15,3.222]
[1744586878641,0.31248675,584.14,583.15,3.222]
[1744586878841,0.31248675,584.15,583.15,3.222]
[1744586879043,0.31248675,584.14,583.15,3.222]
[1744586879244,0.31248675,584.13,583.15,3.222]
[1744586879446,0.31248675,584.12,583.15,3.222]
[1744586879746,0.31248675,584.11,583.15,3.222]
[1744586879947,0.216,584.11,583.15,3.222]
[1744586880147,0.31248675,584.1,583.15,3.222]
[1744586882349,0.31248675,584.1,583.16,0.31493709]
[1744586882949,0.31248675,584.1,583.17,0.31493709]
[1744586883144,0.31248675,584.1,583.15,0.31493709]
[1744586883346,0.31248675,584.1,583.14,0.29820051]
[1744586883547,0.31248675,584.1,583.15,0.31493964]
[1744586884557,0.31248675,584.1,583.14,0.29819157]
[1744586884757,0.31248675,584.1,583.15,0.31493964]
[1744586884953,0.31248675,584.1,583.15,0.75293964]
[1744586885251,0.31248675,584.1,583.16,0.31493964]
[1744586885655,0.216,584.11,583.15,1.316]
[1744586885850,0.31248093,584.1,583.16,0.31493889]
[1744586886049,0.31248093,584.1,583.16,0.69793889]
[1744586886249,0.31248093,584.1,583.17,0.31493889]
[1744586888756,0.216,584.11,583.16,0.878]
[1744586888957,0.31247608,584.1,583.17,0.31493403]
[1744586898265,0.31246429,584.09,583.18,0.31492223]
[1744586898462,0.31246429,584.08,583.19,0.31492223]
[1744586898666,0.31246429,584.1,583.17,0.31492223]
[1744586898868,0.31246429,584.09,583.18,0.31492223]
[1744586899061,0.31246429,584.08,583.19,0.31492223]
[1744586899266,0.31246429,584.15,583.17,0.31492223]
[1744586899466,0.31246429,584.14,583.18,0.31492223]
[1744586899663,0.31246429,584.15,583.17,0.31492223]
[1744586901370,0.34237195,584.16,583.16,1.17618135]
[1744586901666,0.216,584.14,583.17,0.31491423]
[1744586901868,0.3124563,584.13,583.17,0.31491423]
[1744586902069,0.3124563,584.13,583.17,0.67391423]
[1744586902269,0.3124563,584.13,583.18,0.31491423]
[1744586905975,0.216,584.14,583.17,0.65718007]
[1744586906275,0.31245053,584.13,583.18,0.31490845]
[1744586909172,0.31245053,584.13,583.18,0.86690845]
[1744586909371,0.31245053,584.13,583.19,0.31490845]
[1744586912179,0.216,584.14,583.18,0.552]
[1744586912379,0.31245768,584.13,583.19,0.3149156]
[1744586920086,0.31245768,584.13,583.2,0.443]
[1744586920385,0.31245768,584.13,583.21,0.3149156]
[1744586924191,0.216,584.14,583.22,0.434]
[1744586924892,0.216,584.14,583.23,0.581]
[1744586925592,0.31244068,584.12,583.23,0.581]
[1744586925793,0.31244068,584.11,583.24,0.31489859]
[1744586925994,0.216,584.14,583.23,0.581]
[1744586926195,0.31244333,584.13,583.24,0.31490124]
[1744586927497,0.216,584.14,583.23,0.581]
[1744586927697,0.31244329,584.13,583.24,0.3149012]
[1744586928498,0.216,584.14,583.24,0.3149012]
[1744586928899,0.216,584.14,583.25,0.368]
[1744586929198,0.216,584.14,583.26,0.31485851]
[1744586930498,1.30011221,584.59,583.26,0.31485851]
[1744586930798,0.65450625,584.58,583.26,0.31485851]
[1744586931094,0.6545121,584.57,583.26,0.31485851]
[1744586931294,0.65451795,584.56,583.27,0.623]
[1744586931499,0.6545238,584.55,583.28,0.31485851]
[1744586931799,0.65452966,584.54,583.28,0.31485851]
[1744586932099,0.65453551,584.53,583.28,0.31485851]
[1744586932301,0.65454136,584.52,583.28,0.31485851]
[1744586932496,0.65454722,584.51,583.28,0.31485851]
[1744586932696,1.30011221,584.59,583.28,0.31485851]
[1744586932697,0.65455307,584.5,583.28,0.31485851]
[1744586932899,0.65455893,584.49,583.28,0.31485851]
[1744586933099,0.65456478,584.48,583.28,0.31485851]
[1744586933399,0.65457064,584.47,583.28,0.31485851]
[1744586933592,0.65457649,584.46,583.28,0.31485851]
[1744586933793,0.31238028,584.45,583.28,0.31485851]
[1744586933995,0.52838028,584.45,583.28,0.31485851]
[1744586934201,0.31238028,584.44,583.28,0.31485851]
[1744586935502,0.31238007,584.43,583.29,0.31483791]
[1744586935796,0.31238007,584.42,583.3,0.31483791]
[1744586936000,0.31238007,584.44,583.28,0.31483791]
[1744586939401,0.31238007,584.44,583.28,0.75383791]
[1744586939595,0.31238007,584.44,583.29,0.31483791]
[1744586941203,0.216,584.45,583.28,0.913]
[1744586941399,0.3123761,584.44,583.29,0.31483393]
[1744586942704,0.216,584.45,583.28,1.25588849]
[1744586942901,0.31237048,584.44,583.29,0.31482829]
[1744586943299,0.31237048,584.44,583.3,0.34287673]
[1744586943504,0.31237048,584.44,583.31,0.31482829]
[1744586943700,0.31237048,584.44,583.32,0.34286497]
[1744586943902,0.31237048,584.44,583.33,0.31482829]
[1744586944405,0.31237048,584.44,583.34,0.34285322]
[1744586944606,0.31237048,584.44,583.35,0.31482829]
[1744586946210,0.31237048,584.44,583.36,0.34284147]
[1744586946404,0.31237048,584.44,583.37,0.31482829]
[1744586946608,0.31237048,584.44,583.38,0.34282971]
[1744586946809,0.31237048,584.44,583.39,0.31482829]
[1744586947106,0.31237048,584.44,583.4,0.34281796]
[1744586947306,0.31237048,584.44,583.41,0.31482829]
[1744586947503,0.31237048,584.44,583.41,0.65764037]
[1744586947710,0.31237048,584.44,583.41,0.34281208]
[1744586949212,0.31237048,584.45,583.41,0.34281208]
[1744586949413,0.31237048,584.44,583.41,0.34281208]
[1744586949613,0.31237048,584.45,583.41,0.34281208]
[1744586950616,0.34219621,584.46,583.41,0.34281208]
[1744586950815,0.31234012,584.45,583.41,0.34281208]
[1744586951815,0.31234012,584.45,583.42,0.31479134]
[1744586952019,0.52834012,584.45,583.42,0.31479134]
[1744586952319,0.31234012,584.44,583.42,0.31479134]
[1744586953721,0.216,584.45,583.41,0.34281208]
[1744586953923,0.31233294,584.44,583.42,0.80279071]
[1744586954118,0.31233294,584.44,583.43,0.31479071]
[1744586956925,0.216,584.45,583.42,0.488]
[1744586957118,0.31231273,584.44,583.43,0.31477048]
[1744586958518,0.216,584.45,583.42,0.488]
[1744586959124,0.216,584.45,583.42,0.96]
[1744586963929,0.31233007,584.44,583.42,0.96]
[1744586964931,0.34219621,584.46,583.42,0.96]
[1744586965130,0.31233118,584.45,583.42,0.96]
[1744586967227,0.31233118,584.45,583.42,1.568]
[1744586967532,0.52833118,584.45,583.42,1.568]
[1744586967826,0.31233118,584.44,583.42,1.568]
[1744586968126,0.31233118,584.44,583.42,1.974]
[1744586968628,0.31233118,584.44,583.42,2.398]
[1744586970333,0.31233118,584.44,583.43,0.31479532]
[1744586973633,0.31233118,584.44,583.43,0.70079532]
[1744586973834,0.31233118,584.44,583.44,0.31479532]
[1744586974536,0.31233118,584.44,583.45,0.522]
[1744586974734,0.31232255,584.43,583.46,0.31478032]
[1744586974935,0.31232255,584.42,583.46,0.31478032]
[1744586975132,0.31232255,584.44,583.46,0.31478032]
[1744586975329,0.31232255,584.43,583.46,0.31478032]
[1744586975533,0.31232255,584.42,583.46,0.31478032]
[1744586975733,0.31232255,584.44,583.46,0.31478032]
[1744586975932,0.31232255,584.43,583.46,0.31478032]
[1744586976135,0.31232255,584.44,583.46,0.31478032]
[1744586976336,0.31232255,584.43,583.46,0.31478032]
[1744586976536,0.31232255,584.44,583.46,0.31478032]
[1744586976735,0.31232255,584.43,583.46,0.31478032]
[1744586976931,0.31232255,584.42,583.46,0.31478032]
[1744586977137,0.31232255,584.44,583.47,0.519]
[1744586977332,0.31232255,584.43,583.48,0.31478032]
[1744586977530,0.31232255,584.42,583.48,0.31478032]
[1744586977732,0.31232255,584.44,583.48,0.31478032]
[1744586978038,0.31232255,584.43,583.48,0.31478032]
[1744586978238,0.31232255,584.42,583.48,0.31478032]
[1744586978438,0.31232255,584.44,583.48,0.31478032]
[1744586978639,0.31232255,584.43,583.48,0.31478032]
[1744586978939,0.31232255,584.42,583.48,0.31478032]
[1744586979138,0.31232255,584.44,583.48,0.31478032]
[1744586979332,0.216,584.45,583.48,0.31478032]
[1744586979532,0.31227345,584.44,583.48,0.31478032]
[1744586981439,0.216,584.45,583.47,0.81701665]
[1744586981632,0.31227355,584.44,583.48,0.31473126]
[1744586981837,0.216,584.45,583.48,0.31473126]
[1744586982140,0.31227306,584.44,583.48,0.31473126]
[1744586982341,0.216,584.45,583.48,0.31473126]
[1744586982741,0.216,584.45,583.49,0.34276508]
[1744586982941,0.216,584.45,583.5,0.31473126]
[1744586983140,0.216,584.45,583.51,0.34275333]
[1744586983340,0.216,584.45,583.52,0.31473126]
[1744586983538,0.216,584.45,583.53,0.34274158]
[1744586983745,0.216,584.45,583.54,0.31473126]
[1744586983939,0.216,584.45,583.55,0.34272984]
[1744586984138,0.216,584.45,583.56,0.31473126]
[1744586984339,0.216,584.45,583.57,0.34271809]
[1744586984545,0.216,584.45,583.58,0.31473126]
[1744586984739,0.216,584.45,583.59,0.65738519]
[1744586984939,0.216,584.45,583.59,0.34270635]
[1744586990547,0.216,584.45,583.6,0.387]
[1744586992750,0.216,584.45,583.61,0.426]
[1744587000955,0.216,584.45,583.62,0.388]
[1744587006465,0.216,584.45,583.63,0.55]
[1744587009167,0.216,584.45,583.64,0.343]
[1744587012867,0.216,584.45,583.65,0.477]
[1744587013069,0.31231139,584.44,583.65,0.477]
[1744587013566,0.31231139,584.43,583.65,0.477]
[1744587013763,0.31231139,584.42,583.65,0.477]
[1744587013964,1.30011221,584.91,583.65,0.477]
[1744587014167,0.34202065,584.76,583.65,0.477]
[1744587014367,0.31231139,584.75,583.65,0.477]
[1744587014567,0.34203235,584.74,583.65,0.477]
[1744587014767,0.31231139,584.73,583.65,0.477]
[1744587014963,0.34204405,584.72,583.65,0.477]
[1744587015169,0.31231139,584.71,583.65,0.477]
[1744587015362,0.34205575,584.7,583.65,0.477]
[1744587015563,0.31231139,584.69,583.65,0.477]
[1744587015763,0.31231139,584.69,583.65,0.938]
[1744587015968,0.31233917,584.68,583.65,0.938]
[1744587016270,0.31233917,584.67,583.65,0.938]
[1744587016469,0.31233917,584.66,583.65,0.938]
[1744587016670,0.31233917,584.65,583.65,0.938]
[1744587016870,0.31233917,584.64,583.65,0.938]
[1744587017068,0.34209671,584.63,583.65,0.938]
[1744587017264,0.31234224,584.62,583.65,0.938]
[1744587017465,0.34210841,584.61,583.65,0.938]
[1744587017671,0.31234135,584.6,583.65,0.938]
[1744587017871,0.34212011,584.59,583.65,0.938]
[1744587018074,0.31234135,584.58,583.65,0.938]
[1744587018367,0.34213182,584.57,583.65,0.938]
[1744587018572,0.31234135,584.56,583.65,0.938]
[1744587018772,0.34214352,584.55,583.65,0.938]
[1744587019072,0.31234231,584.54,583.65,0.938]
[1744587019266,0.65449169,584.54,583.65,0.938]
[1744587019471,0.31234231,584.53,583.65,0.938]
[1744587020571,0.34214938,584.54,583.65,0.938]
[1744587020772,0.31230618,584.53,583.65,0.938]
[1744587022477,0.31230618,584.53,583.65,1.364]
[1744587023576,0.34214938,584.54,583.65,1.364]
[1744587023772,0.31230734,584.53,583.65,1.364]
[1744587023977,0.31230734,584.53,583.65,1.877]
[1744587025179,0.34214938,584.54,583.65,1.877]
[1744587025381,0.31230704,584.53,583.65,2.423]
[1744587026676,0.34214938,584.54,583.65,2.423]
[1744587026880,0.31230818,584.53,583.65,2.423]
[1744587028282,0.34214938,584.54,583.65,2.423]
[1744587028478,0.31230817,584.53,583.65,2.423]
[1744587029778,0.34214938,584.54,583.65,2.423]
[1744587029983,0.31230449,584.53,583.65,2.423]
[1744587031385,0.34214938,584.54,583.65,2.423]
[1744587031585,0.31226684,584.53,583.65,2.423]
[1744587034484,0.34214938,584.54,583.65,2.423]
[1744587034683,0.31228384,584.53,583.65,2.423]
[1744587035388,0.216,584.52,583.65,2.423]
[1744587035588,0.31228384,584.51,583.65,2.423]
[1744587035990,0.216,584.52,583.65,2.423]
[1744587036190,0.31228577,584.51,583.65,2.423]
[1744587040695,0.216,584.52,583.65,2.423]
[1744587040890,0.31231171,584.51,583.65,2.423]
[1744587043897,0.216,584.52,583.65,2.423]
[1744587044093,0.31230849,584.51,583.65,2.423]
[1744587045499,0.216,584.52,583.65,2.423]
[1744587045701,0.31230745,584.51,583.65,2.423]
[1744587046002,0.31230745,584.51,583.65,2.82]
[1744587047295,0.31233951,584.5,583.65,2.82]
[1744587047503,0.31233951,584.51,583.65,2.82]
[1744587047797,0.31233951,584.5,583.65,2.82]
[1744587048001,0.31233951,584.49,583.65,2.82]
[1744587048202,0.31233951,584.51,583.65,2.82]
[1744587048401,0.216,584.52,583.65,2.82]
[1744587048402,0.31233951,584.48,583.65,2.82]
[1744587048602,0.31233951,584.47,583.65,2.82]
[1744587048901,0.31233659,584.46,583.65,2.82]
[1744587049096,0.31233659,584.51,583.65,2.82]
[1744587049301,0.31233659,584.5,583.65,2.82]
[1744587049501,0.31233659,584.51,583.65,2.82]
[1744587050304,0.216,584.52,583.65,2.82]
[1744587050499,0.31233604,584.51,583.65,2.82]
[1744587051901,0.31235237,584.5,583.65,2.82]
[1744587052102,0.31235237,584.51,583.65,2.82]
[1744587054614,0.31235237,584.53,583.65,2.82]
[1744587054912,0.31235237,584.52,583.65,2.82]
[1744587055112,0.31235237,584.51,583.65,2.82]
[1744587055313,0.31235237,584.53,583.65,2.82]
[1744587057513,0.216,584.52,583.65,2.82]
[1744587057813,0.31235237,584.51,583.65,2.82]
[1744587058113,0.216,584.52,583.65,2.82]
[1744587058312,0.31234363,584.51,583.65,2.82]
[1744587059711,0.216,584.52,583.65,2.82]
[1744587059912,0.31235271,584.51,583.65,2.82]
[1744587064118,0.31238729,584.5,583.65,2.82]
[1744587064309,0.31238729,584.49,583.65,2.82]
[1744587064611,0.31238729,584.48,583.65,2.82]
[1744587064815,0.31238729,584.51,583.65,2.82]
[1744587065115,0.31238729,584.5,583.65,2.82]
[1744587065313,0.31238729,584.51,583.65,2.82]
[1744587065510,0.31238729,584.5,583.65,2.82]
[1744587065710,0.31238729,584.49,583.65,2.82]
[1744587065913,0.31238729,584.48,583.65,2.82]
[1744587066111,0.31238729,584.47,583.65,2.82]
[1744587066314,0.31238729,584.51,583.65,2.82]
[1744587066613,0.31238729,584.5,583.65,2.82]
[1744587066814,0.31238729,584.51,583.65,2.82]
[1744587067010,0.31233595,584.5,583.65,2.82]
[1744587067314,0.31233595,584.49,583.65,2.82]
[1744587067514,0.31233595,584.51,583.65,2.82]
[1744587067710,0.31233595,584.5,583.65,2.82]
[1744587067910,0.31233595,584.51,583.65,2.82]
[1744587068115,0.31233595,584.5,583.65,2.82]
[1744587068410,0.31233595,584.49,583.65,2.82]
[1744587068614,0.31233595,584.51,583.65,2.82]
[1744587068914,0.31233595,584.5,583.65,2.82]
[1744587069117,0.31233595,584.51,583.65,2.82]
[1744587070114,0.216,584.52,583.65,2.82]
[1744587070414,0.31234631,584.51,583.65,2.82]
[1744587071713,0.216,584.52,583.65,2.82]
[1744587071909,0.31234644,584.51,583.65,2.82]
[1744587073213,0.216,584.52,583.65,2.82]
[1744587073413,0.31234783,584.51,583.65,2.82]
[1744587074821,0.31234783,584.53,583.65,2.82]
[1744587075120,0.31234783,584.52,583.65,2.82]
[1744587075317,0.31234783,584.53,583.65,2.82]
[1744587077122,0.216,584.52,583.65,2.82]
[1744587077317,0.31234783,584.51,583.65,2.82]
[1744587081025,0.216,584.52,583.65,2.82]
[1744587081226,0.3123461,584.51,583.65,2.82]
[1744587083730,0.34217279,584.5,583.65,2.82]
[1744587084029,0.3123461,584.49,583.65,2.82]
[1744587084230,0.31235015,584.48,583.65,2.82]
[1744587090734,0.34217865,584.49,583.65,2.82]
[1744587091035,0.31234522,584.48,583.65,2.82]
[1744587092336,0.34217865,584.49,583.65,2.82]
[1744587092537,0.31234725,584.48,583.65,2.82]
[1744587093836,0.34217865,584.49,583.65,2.82]
[1744587094138,0.31234619,584.48,583.65,2.82]
[1744587094632,0.216,584.47,583.65,2.82]
[1744587094836,0.31234619,584.46,583.65,2.82]
[1744587097137,0.31234441,584.45,583.65,2.82]
[1744587097332,0.31234441,584.46,583.65,2.82]
[1744587098538,0.216,584.47,583.65,2.82]
[1744587098739,0.31235162,584.46,583.65,2.82]
[1744587100035,0.216,584.47,583.65,2.82]
[1744587100238,0.31239302,584.46,583.65,2.82]
[1744587103043,0.65458923,584.46,583.65,2.82]
[1744587103236,0.31239302,584.45,583.65,2.82]
[1744587104338,0.34220792,584.44,583.65,2.82]
[1744587104542,0.31239302,584.43,583.65,2.82]
[1744587104839,0.31239377,584.42,583.65,2.82]
[1744587105044,0.31239377,584.41,583.65,2.82]
[1744587105244,0.31239377,584.43,583.65,2.82]
[1744587105538,0.31239377,584.42,583.65,2.82]
[1744587105744,0.31239377,584.41,583.65,2.82]
[1744587105944,0.31239377,584.43,583.65,2.82]
[1744587106142,0.31239377,584.42,583.65,2.82]